{"text_format":"2","workbook":"xlsx","n_sheets":1,"sheets":["Wettkampfliste"],"not_rendered":{"charts":0,"images":2,"macros":0,"external_links":0,"defined_names":0,"comments":0,"pivot_tables":0},"unopened":[],"bounds":{"document_bytes":16777216,"sheet_cells":100000,"run_cost":"one","rows_first":2000,"rows_last":500,"rows_between":2000,"halvings":0,"cell_chars":16384,"cell_head_chars":4096},"cells_cut":0,"cells_raw":0,"read":"whole","date_system":"1900"}

{"sheet":"Wettkampfliste","index":0,"n_rows":49,"n_cols":12,"rows_kept":49,"cut":false,"hidden":false,"merged":[[0,9,0,10],[1,9,1,10],[2,9,2,10],[3,9,3,10],[4,9,4,10]]}
[{"$f":"IFERROR(__xludf.DUMMYFUNCTION(\"IMPORTRANGE(\"\"https://docs.google.com/spreadsheets/d/1d52S_qteMWqyd-6ta5uiuRRZMtIsGWx9Az5XDRFTl8E/edit?gid=2065695738#gid=2065695738\"\",\"\"Wettkampfliste!A1:M50\"\")\"),\"\")","v":""},{"$nulls":7},{"$f":"IFERROR(__xludf.DUMMYFUNCTION(\"\"\"COMPUTED_VALUE\"\"\"),\"Art :         \")","v":"Art :         "},{"$f":"IFERROR(__xludf.DUMMYFUNCTION(\"\"\"COMPUTED_VALUE\"\"\"),\"Süddeutsche EM Männer Frauen 2024\")","v":"Süddeutsche EM Männer Frauen 2024"}]
[{"$nulls":8},{"$f":"IFERROR(__xludf.DUMMYFUNCTION(\"\"\"COMPUTED_VALUE\"\"\"),\"Ort :\")","v":"Ort :"},{"$f":"IFERROR(__xludf.DUMMYFUNCTION(\"\"\"COMPUTED_VALUE\"\"\"),\"München\")","v":"München"}]
[{"$nulls":8},{"$f":"IFERROR(__xludf.DUMMYFUNCTION(\"\"\"COMPUTED_VALUE\"\"\"),\"Datum :  \")","v":"Datum :  "},{"$f":"IFERROR(__xludf.DUMMYFUNCTION(\"\"\"COMPUTED_VALUE\"\"\"),45556.2916666666)","v":"2024-09-21T07:00:00"}]
[{"$f":"IFERROR(__xludf.DUMMYFUNCTION(\"\"\"COMPUTED_VALUE\"\"\"),\"Liste für 16 Teilnehmer mit doppelter Trostrunde\")","v":"Liste für 16 Teilnehmer mit doppelter Trostrunde"},{"$nulls":7},{"$f":"IFERROR(__xludf.DUMMYFUNCTION(\"\"\"COMPUTED_VALUE\"\"\"),\"Gewichtsklasse :    \")","v":"Gewichtsklasse :    "},{"$f":"IFERROR(__xludf.DUMMYFUNCTION(\"\"\"COMPUTED_VALUE\"\"\"),\"M-73KG\")","v":"M-73KG"}]
[{"$nulls":8},{"$f":"IFERROR(__xludf.DUMMYFUNCTION(\"\"\"COMPUTED_VALUE\"\"\"),\"Sportl. Leitung :    \")","v":"Sportl. Leitung :    "},{"$f":"IFERROR(__xludf.DUMMYFUNCTION(\"\"\"COMPUTED_VALUE\"\"\"),\"Emil Burock\")","v":"Emil Burock"}]
[{"$f":"IFERROR(__xludf.DUMMYFUNCTION(\"\"\"COMPUTED_VALUE\"\"\"),1)","v":1},{"$f":"IFERROR(__xludf.DUMMYFUNCTION(\"\"\"COMPUTED_VALUE\"\"\"),\"Bulinger Eduard\")","v":"Bulinger Eduard"},{"$f":"IFERROR(__xludf.DUMMYFUNCTION(\"\"\"COMPUTED_VALUE\"\"\"),\"Jahn Nürnberg 2012 e.V.\")","v":"Jahn Nürnberg 2012 e.V."},{"$f":"IFERROR(__xludf.DUMMYFUNCTION(\"\"\"COMPUTED_VALUE\"\"\"),1)","v":1},{"$f":"IFERROR(__xludf.DUMMYFUNCTION(\"\"\"COMPUTED_VALUE\"\"\"),\"Bulinger Eduard\")","v":"Bulinger Eduard"},{"$f":"IFERROR(__xludf.DUMMYFUNCTION(\"\"\"COMPUTED_VALUE\"\"\"),\"Jahn Nürnberg 2012 e.V.\")","v":"Jahn Nürnberg 2012 e.V."}]
[{"$f":"IFERROR(__xludf.DUMMYFUNCTION(\"\"\"COMPUTED_VALUE\"\"\"),9)","v":9},{"$f":"IFERROR(__xludf.DUMMYFUNCTION(\"\"\"COMPUTED_VALUE\"\"\"),\"Nikitin Egor\")","v":"Nikitin Egor"},{"$f":"IFERROR(__xludf.DUMMYFUNCTION(\"\"\"COMPUTED_VALUE\"\"\"),\"Budo-Club Karlsruhe\")","v":"Budo-Club Karlsruhe"},{"$f":"IFERROR(__xludf.DUMMYFUNCTION(\"\"\"COMPUTED_VALUE\"\"\"),\"w\")","v":"w"},null,{"$f":"IFERROR(__xludf.DUMMYFUNCTION(\"\"\"COMPUTED_VALUE\"\"\"),9)","v":9},{"$f":"IFERROR(__xludf.DUMMYFUNCTION(\"\"\"COMPUTED_VALUE\"\"\"),\"Bulinger Eduard\")","v":"Bulinger Eduard"},{"$f":"IFERROR(__xludf.DUMMYFUNCTION(\"\"\"COMPUTED_VALUE\"\"\"),\"Jahn Nürnberg 2012 e.V.\")","v":"Jahn Nürnberg 2012 e.V."}]
[]
[{"$f":"IFERROR(__xludf.DUMMYFUNCTION(\"\"\"COMPUTED_VALUE\"\"\"),5)","v":5},{"$f":"IFERROR(__xludf.DUMMYFUNCTION(\"\"\"COMPUTED_VALUE\"\"\"),\"Kuttalek Lucas\")","v":"Kuttalek Lucas"},{"$f":"IFERROR(__xludf.DUMMYFUNCTION(\"\"\"COMPUTED_VALUE\"\"\"),\"JC Achental\")","v":"JC Achental"},{"$f":"IFERROR(__xludf.DUMMYFUNCTION(\"\"\"COMPUTED_VALUE\"\"\"),2)","v":2},{"$f":"IFERROR(__xludf.DUMMYFUNCTION(\"\"\"COMPUTED_VALUE\"\"\"),\"Guilbaut Luca\")","v":"Guilbaut Luca"},{"$f":"IFERROR(__xludf.DUMMYFUNCTION(\"\"\"COMPUTED_VALUE\"\"\"),\"w\")","v":"w"}]
[{"$f":"IFERROR(__xludf.DUMMYFUNCTION(\"\"\"COMPUTED_VALUE\"\"\"),13)","v":13},{"$f":"IFERROR(__xludf.DUMMYFUNCTION(\"\"\"COMPUTED_VALUE\"\"\"),\"Guilbaut Luca\")","v":"Guilbaut Luca"},{"$f":"IFERROR(__xludf.DUMMYFUNCTION(\"\"\"COMPUTED_VALUE\"\"\"),\"TSB Ravensburg\")","v":"TSB Ravensburg"},{"$f":"IFERROR(__xludf.DUMMYFUNCTION(\"\"\"COMPUTED_VALUE\"\"\"),\"b\")","v":"b"},null,{"$f":"IFERROR(__xludf.DUMMYFUNCTION(\"\"\"COMPUTED_VALUE\"\"\"),\"TSB Ravensburg\")","v":"TSB Ravensburg"},null,{"$f":"IFERROR(__xludf.DUMMYFUNCTION(\"\"\"COMPUTED_VALUE\"\"\"),21)","v":21},{"$f":"IFERROR(__xludf.DUMMYFUNCTION(\"\"\"COMPUTED_VALUE\"\"\"),\"Himmelspach Yannick\")","v":"Himmelspach Yannick"},{"$f":"IFERROR(__xludf.DUMMYFUNCTION(\"\"\"COMPUTED_VALUE\"\"\"),\"TSV Altenfurt\")","v":"TSV Altenfurt"}]
[]
[{"$f":"IFERROR(__xludf.DUMMYFUNCTION(\"\"\"COMPUTED_VALUE\"\"\"),3)","v":3},{"$f":"IFERROR(__xludf.DUMMYFUNCTION(\"\"\"COMPUTED_VALUE\"\"\"),\"Himmelspach Yannick\")","v":"Himmelspach Yannick"},{"$f":"IFERROR(__xludf.DUMMYFUNCTION(\"\"\"COMPUTED_VALUE\"\"\"),\"TSV Altenfurt\")","v":"TSV Altenfurt"},{"$f":"IFERROR(__xludf.DUMMYFUNCTION(\"\"\"COMPUTED_VALUE\"\"\"),3)","v":3},{"$f":"IFERROR(__xludf.DUMMYFUNCTION(\"\"\"COMPUTED_VALUE\"\"\"),\"Himmelspach Yannick\")","v":"Himmelspach Yannick"},{"$f":"IFERROR(__xludf.DUMMYFUNCTION(\"\"\"COMPUTED_VALUE\"\"\"),\"TSV Altenfurt\")","v":"TSV Altenfurt"}]
[{"$f":"IFERROR(__xludf.DUMMYFUNCTION(\"\"\"COMPUTED_VALUE\"\"\"),11)","v":11},{"$f":"IFERROR(__xludf.DUMMYFUNCTION(\"\"\"COMPUTED_VALUE\"\"\"),\"Holtmann Jonas \")","v":"Holtmann Jonas "},{"$f":"IFERROR(__xludf.DUMMYFUNCTION(\"\"\"COMPUTED_VALUE\"\"\"),\"Polizei-SV Königsbrunn\")","v":"Polizei-SV Königsbrunn"},{"$f":"IFERROR(__xludf.DUMMYFUNCTION(\"\"\"COMPUTED_VALUE\"\"\"),\"w\")","v":"w"},null,{"$f":"IFERROR(__xludf.DUMMYFUNCTION(\"\"\"COMPUTED_VALUE\"\"\"),10)","v":10},{"$f":"IFERROR(__xludf.DUMMYFUNCTION(\"\"\"COMPUTED_VALUE\"\"\"),\"Himmelspach Yannick\")","v":"Himmelspach Yannick"},{"$f":"IFERROR(__xludf.DUMMYFUNCTION(\"\"\"COMPUTED_VALUE\"\"\"),\"b\")","v":"b"}]
[]
[{"$f":"IFERROR(__xludf.DUMMYFUNCTION(\"\"\"COMPUTED_VALUE\"\"\"),7)","v":7},{"$f":"IFERROR(__xludf.DUMMYFUNCTION(\"\"\"COMPUTED_VALUE\"\"\"),\"Zeiss Mark\")","v":"Zeiss Mark"},{"$f":"IFERROR(__xludf.DUMMYFUNCTION(\"\"\"COMPUTED_VALUE\"\"\"),\"TSV Erbach\")","v":"TSV Erbach"},{"$f":"IFERROR(__xludf.DUMMYFUNCTION(\"\"\"COMPUTED_VALUE\"\"\"),4)","v":4},{"$f":"IFERROR(__xludf.DUMMYFUNCTION(\"\"\"COMPUTED_VALUE\"\"\"),\"Zeiss Mark\")","v":"Zeiss Mark"},{"$f":"IFERROR(__xludf.DUMMYFUNCTION(\"\"\"COMPUTED_VALUE\"\"\"),\"w\")","v":"w"},null,{"$f":"IFERROR(__xludf.DUMMYFUNCTION(\"\"\"COMPUTED_VALUE\"\"\"),\"TSV Altenfurt\")","v":"TSV Altenfurt"}]
[{"$f":"IFERROR(__xludf.DUMMYFUNCTION(\"\"\"COMPUTED_VALUE\"\"\"),15)","v":15},{"$f":"IFERROR(__xludf.DUMMYFUNCTION(\"\"\"COMPUTED_VALUE\"\"\"),\"---\")","v":"---"},{"$f":"IFERROR(__xludf.DUMMYFUNCTION(\"\"\"COMPUTED_VALUE\"\"\"),\"---\")","v":"---"},{"$f":"IFERROR(__xludf.DUMMYFUNCTION(\"\"\"COMPUTED_VALUE\"\"\"),\"w\")","v":"w"},null,{"$f":"IFERROR(__xludf.DUMMYFUNCTION(\"\"\"COMPUTED_VALUE\"\"\"),\"TSV Erbach\")","v":"TSV Erbach"},null,null,null,{"$f":"IFERROR(__xludf.DUMMYFUNCTION(\"\"\"COMPUTED_VALUE\"\"\"),27)","v":27},{"$f":"IFERROR(__xludf.DUMMYFUNCTION(\"\"\"COMPUTED_VALUE\"\"\"),\"Himmelspach Yannick\")","v":"Himmelspach Yannick"}]
[]
[{"$f":"IFERROR(__xludf.DUMMYFUNCTION(\"\"\"COMPUTED_VALUE\"\"\"),2)","v":2},{"$f":"IFERROR(__xludf.DUMMYFUNCTION(\"\"\"COMPUTED_VALUE\"\"\"),\"Menzl Nikolas\")","v":"Menzl Nikolas"},{"$f":"IFERROR(__xludf.DUMMYFUNCTION(\"\"\"COMPUTED_VALUE\"\"\"),\"TSV Neutraubling\")","v":"TSV Neutraubling"},{"$f":"IFERROR(__xludf.DUMMYFUNCTION(\"\"\"COMPUTED_VALUE\"\"\"),5)","v":5},{"$f":"IFERROR(__xludf.DUMMYFUNCTION(\"\"\"COMPUTED_VALUE\"\"\"),\"Menzl Nikolas\")","v":"Menzl Nikolas"},{"$f":"IFERROR(__xludf.DUMMYFUNCTION(\"\"\"COMPUTED_VALUE\"\"\"),\"TSV Neutraubling\")","v":"TSV Neutraubling"},{"$nulls":5},{"$f":"IFERROR(__xludf.DUMMYFUNCTION(\"\"\"COMPUTED_VALUE\"\"\"),\"1.\")","v":"1."}]
[{"$f":"IFERROR(__xludf.DUMMYFUNCTION(\"\"\"COMPUTED_VALUE\"\"\"),10)","v":10},{"$f":"IFERROR(__xludf.DUMMYFUNCTION(\"\"\"COMPUTED_VALUE\"\"\"),\"Rausch Alexander\")","v":"Rausch Alexander"},{"$f":"IFERROR(__xludf.DUMMYFUNCTION(\"\"\"COMPUTED_VALUE\"\"\"),\"JV Urbach\")","v":"JV Urbach"},{"$f":"IFERROR(__xludf.DUMMYFUNCTION(\"\"\"COMPUTED_VALUE\"\"\"),\"w\")","v":"w"},null,{"$f":"IFERROR(__xludf.DUMMYFUNCTION(\"\"\"COMPUTED_VALUE\"\"\"),11)","v":11},{"$f":"IFERROR(__xludf.DUMMYFUNCTION(\"\"\"COMPUTED_VALUE\"\"\"),\"Menzl Nikolas\")","v":"Menzl Nikolas"},{"$f":"IFERROR(__xludf.DUMMYFUNCTION(\"\"\"COMPUTED_VALUE\"\"\"),\"TSV Neutraubling\")","v":"TSV Neutraubling"}]
[]
[{"$f":"IFERROR(__xludf.DUMMYFUNCTION(\"\"\"COMPUTED_VALUE\"\"\"),6)","v":6},{"$f":"IFERROR(__xludf.DUMMYFUNCTION(\"\"\"COMPUTED_VALUE\"\"\"),\"Malik Kevin\")","v":"Malik Kevin"},{"$f":"IFERROR(__xludf.DUMMYFUNCTION(\"\"\"COMPUTED_VALUE\"\"\"),\"TSV Dachau\")","v":"TSV Dachau"},{"$f":"IFERROR(__xludf.DUMMYFUNCTION(\"\"\"COMPUTED_VALUE\"\"\"),6)","v":6},{"$f":"IFERROR(__xludf.DUMMYFUNCTION(\"\"\"COMPUTED_VALUE\"\"\"),\"Zerle Lorenz\")","v":"Zerle Lorenz"},{"$f":"IFERROR(__xludf.DUMMYFUNCTION(\"\"\"COMPUTED_VALUE\"\"\"),\"w\")","v":"w"}]
[{"$f":"IFERROR(__xludf.DUMMYFUNCTION(\"\"\"COMPUTED_VALUE\"\"\"),14)","v":14},{"$f":"IFERROR(__xludf.DUMMYFUNCTION(\"\"\"COMPUTED_VALUE\"\"\"),\"Zerle Lorenz\")","v":"Zerle Lorenz"},{"$f":"IFERROR(__xludf.DUMMYFUNCTION(\"\"\"COMPUTED_VALUE\"\"\"),\"Polizei-SV Königsbrunn\")","v":"Polizei-SV Königsbrunn"},{"$f":"IFERROR(__xludf.DUMMYFUNCTION(\"\"\"COMPUTED_VALUE\"\"\"),\"b\")","v":"b"},null,{"$f":"IFERROR(__xludf.DUMMYFUNCTION(\"\"\"COMPUTED_VALUE\"\"\"),\"Polizei-SV Königsbrunn\")","v":"Polizei-SV Königsbrunn"},null,{"$f":"IFERROR(__xludf.DUMMYFUNCTION(\"\"\"COMPUTED_VALUE\"\"\"),22)","v":22},{"$f":"IFERROR(__xludf.DUMMYFUNCTION(\"\"\"COMPUTED_VALUE\"\"\"),\"Menzl Nikolas\")","v":"Menzl Nikolas"},{"$f":"IFERROR(__xludf.DUMMYFUNCTION(\"\"\"COMPUTED_VALUE\"\"\"),\"w\")","v":"w"}]
[]
[{"$f":"IFERROR(__xludf.DUMMYFUNCTION(\"\"\"COMPUTED_VALUE\"\"\"),4)","v":4},{"$f":"IFERROR(__xludf.DUMMYFUNCTION(\"\"\"COMPUTED_VALUE\"\"\"),\"Shenk Vadim\")","v":"Shenk Vadim"},{"$f":"IFERROR(__xludf.DUMMYFUNCTION(\"\"\"COMPUTED_VALUE\"\"\"),\"Jahn Nürnberg 2012 e.V.\")","v":"Jahn Nürnberg 2012 e.V."},{"$f":"IFERROR(__xludf.DUMMYFUNCTION(\"\"\"COMPUTED_VALUE\"\"\"),7)","v":7},{"$f":"IFERROR(__xludf.DUMMYFUNCTION(\"\"\"COMPUTED_VALUE\"\"\"),\"Walter Rafael\")","v":"Walter Rafael"},{"$f":"IFERROR(__xludf.DUMMYFUNCTION(\"\"\"COMPUTED_VALUE\"\"\"),\"Judoschule Roman Baur\")","v":"Judoschule Roman Baur"},null,null,null,{"$f":"IFERROR(__xludf.DUMMYFUNCTION(\"\"\"COMPUTED_VALUE\"\"\"),\"TSV Neutraubling\")","v":"TSV Neutraubling"}]
[{"$f":"IFERROR(__xludf.DUMMYFUNCTION(\"\"\"COMPUTED_VALUE\"\"\"),12)","v":12},{"$f":"IFERROR(__xludf.DUMMYFUNCTION(\"\"\"COMPUTED_VALUE\"\"\"),\"Walter Rafael\")","v":"Walter Rafael"},{"$f":"IFERROR(__xludf.DUMMYFUNCTION(\"\"\"COMPUTED_VALUE\"\"\"),\"Judoschule Roman Baur\")","v":"Judoschule Roman Baur"},{"$f":"IFERROR(__xludf.DUMMYFUNCTION(\"\"\"COMPUTED_VALUE\"\"\"),\"b\")","v":"b"},null,{"$f":"IFERROR(__xludf.DUMMYFUNCTION(\"\"\"COMPUTED_VALUE\"\"\"),12)","v":12},{"$f":"IFERROR(__xludf.DUMMYFUNCTION(\"\"\"COMPUTED_VALUE\"\"\"),\"Miller Kevin\")","v":"Miller Kevin"},{"$f":"IFERROR(__xludf.DUMMYFUNCTION(\"\"\"COMPUTED_VALUE\"\"\"),\"w\")","v":"w"},null,{"$f":"IFERROR(__xludf.DUMMYFUNCTION(\"\"\"COMPUTED_VALUE\"\"\"),\"1.\")","v":"1."},{"$f":"IFERROR(__xludf.DUMMYFUNCTION(\"\"\"COMPUTED_VALUE\"\"\"),\"Himmelspach Yannick\")","v":"Himmelspach Yannick"}]
[{"$nulls":10},{"$f":"IFERROR(__xludf.DUMMYFUNCTION(\"\"\"COMPUTED_VALUE\"\"\"),\"Menzl Nikolas\")","v":"Menzl Nikolas"}]
[{"$f":"IFERROR(__xludf.DUMMYFUNCTION(\"\"\"COMPUTED_VALUE\"\"\"),8)","v":8},{"$f":"IFERROR(__xludf.DUMMYFUNCTION(\"\"\"COMPUTED_VALUE\"\"\"),\"Miller Kevin\")","v":"Miller Kevin"},{"$f":"IFERROR(__xludf.DUMMYFUNCTION(\"\"\"COMPUTED_VALUE\"\"\"),\"TuS Traunreut\")","v":"TuS Traunreut"},{"$f":"IFERROR(__xludf.DUMMYFUNCTION(\"\"\"COMPUTED_VALUE\"\"\"),8)","v":8},{"$f":"IFERROR(__xludf.DUMMYFUNCTION(\"\"\"COMPUTED_VALUE\"\"\"),\"Miller Kevin\")","v":"Miller Kevin"},{"$f":"IFERROR(__xludf.DUMMYFUNCTION(\"\"\"COMPUTED_VALUE\"\"\"),\"b\")","v":"b"},null,{"$f":"IFERROR(__xludf.DUMMYFUNCTION(\"\"\"COMPUTED_VALUE\"\"\"),\"TuS Traunreut\")","v":"TuS Traunreut"},null,{"$f":"IFERROR(__xludf.DUMMYFUNCTION(\"\"\"COMPUTED_VALUE\"\"\"),\"2.\")","v":"2."},{"$f":"IFERROR(__xludf.DUMMYFUNCTION(\"\"\"COMPUTED_VALUE\"\"\"),\"Menzl Nikolas\")","v":"Menzl Nikolas"}]
[{"$f":"IFERROR(__xludf.DUMMYFUNCTION(\"\"\"COMPUTED_VALUE\"\"\"),16)","v":16},{"$f":"IFERROR(__xludf.DUMMYFUNCTION(\"\"\"COMPUTED_VALUE\"\"\"),\"---\")","v":"---"},{"$f":"IFERROR(__xludf.DUMMYFUNCTION(\"\"\"COMPUTED_VALUE\"\"\"),\"---\")","v":"---"},{"$f":"IFERROR(__xludf.DUMMYFUNCTION(\"\"\"COMPUTED_VALUE\"\"\"),\"w\")","v":"w"},null,{"$f":"IFERROR(__xludf.DUMMYFUNCTION(\"\"\"COMPUTED_VALUE\"\"\"),\"TuS Traunreut\")","v":"TuS Traunreut"},null,null,null,{"$f":"IFERROR(__xludf.DUMMYFUNCTION(\"\"\"COMPUTED_VALUE\"\"\"),\"3.\")","v":"3."},{"$f":"IFERROR(__xludf.DUMMYFUNCTION(\"\"\"COMPUTED_VALUE\"\"\"),\"Bulinger Eduard\")","v":"Bulinger Eduard"}]
[{"$nulls":9},{"$f":"IFERROR(__xludf.DUMMYFUNCTION(\"\"\"COMPUTED_VALUE\"\"\"),\"3.\")","v":"3."},{"$f":"IFERROR(__xludf.DUMMYFUNCTION(\"\"\"COMPUTED_VALUE\"\"\"),\"Miller Kevin\")","v":"Miller Kevin"}]
[]
[{"$nulls":9},{"$f":"IFERROR(__xludf.DUMMYFUNCTION(\"\"\"COMPUTED_VALUE\"\"\"),\"5.\")","v":"5."},{"$f":"IFERROR(__xludf.DUMMYFUNCTION(\"\"\"COMPUTED_VALUE\"\"\"),\"Walter Rafael\")","v":"Walter Rafael"}]
[{"$nulls":9},{"$f":"IFERROR(__xludf.DUMMYFUNCTION(\"\"\"COMPUTED_VALUE\"\"\"),\"5.\")","v":"5."},{"$f":"IFERROR(__xludf.DUMMYFUNCTION(\"\"\"COMPUTED_VALUE\"\"\"),\"Zeiss Mark\")","v":"Zeiss Mark"}]
[{"$f":"IFERROR(__xludf.DUMMYFUNCTION(\"\"\"COMPUTED_VALUE\"\"\"),1)","v":1},{"$f":"IFERROR(__xludf.DUMMYFUNCTION(\"\"\"COMPUTED_VALUE\"\"\"),\"Nikitin Egor\")","v":"Nikitin Egor"},{"$f":"IFERROR(__xludf.DUMMYFUNCTION(\"\"\"COMPUTED_VALUE\"\"\"),\"Budo-Club Karlsruhe\")","v":"Budo-Club Karlsruhe"},{"$f":"IFERROR(__xludf.DUMMYFUNCTION(\"\"\"COMPUTED_VALUE\"\"\"),13)","v":13},{"$f":"IFERROR(__xludf.DUMMYFUNCTION(\"\"\"COMPUTED_VALUE\"\"\"),\"Nikitin Egor\")","v":"Nikitin Egor"},{"$f":"IFERROR(__xludf.DUMMYFUNCTION(\"\"\"COMPUTED_VALUE\"\"\"),\"Budo-Club Karlsruhe\")","v":"Budo-Club Karlsruhe"},null,null,null,{"$f":"IFERROR(__xludf.DUMMYFUNCTION(\"\"\"COMPUTED_VALUE\"\"\"),\"7.\")","v":"7."},{"$f":"IFERROR(__xludf.DUMMYFUNCTION(\"\"\"COMPUTED_VALUE\"\"\"),\"Nikitin Egor\")","v":"Nikitin Egor"}]
[{"$f":"IFERROR(__xludf.DUMMYFUNCTION(\"\"\"COMPUTED_VALUE\"\"\"),2)","v":2},{"$f":"IFERROR(__xludf.DUMMYFUNCTION(\"\"\"COMPUTED_VALUE\"\"\"),\"Kuttalek Lucas\")","v":"Kuttalek Lucas"},{"$f":"IFERROR(__xludf.DUMMYFUNCTION(\"\"\"COMPUTED_VALUE\"\"\"),\"JC Achental\")","v":"JC Achental"},{"$f":"IFERROR(__xludf.DUMMYFUNCTION(\"\"\"COMPUTED_VALUE\"\"\"),\"w\")","v":"w"},null,{"$f":"IFERROR(__xludf.DUMMYFUNCTION(\"\"\"COMPUTED_VALUE\"\"\"),17)","v":17},{"$f":"IFERROR(__xludf.DUMMYFUNCTION(\"\"\"COMPUTED_VALUE\"\"\"),\"Nikitin Egor\")","v":"Nikitin Egor"},{"$f":"IFERROR(__xludf.DUMMYFUNCTION(\"\"\"COMPUTED_VALUE\"\"\"),\"Budo-Club Karlsruhe\")","v":"Budo-Club Karlsruhe"},null,{"$f":"IFERROR(__xludf.DUMMYFUNCTION(\"\"\"COMPUTED_VALUE\"\"\"),\"7.\")","v":"7."},{"$f":"IFERROR(__xludf.DUMMYFUNCTION(\"\"\"COMPUTED_VALUE\"\"\"),\"Guilbaut Luca\")","v":"Guilbaut Luca"}]
[null,null,null,{"$f":"IFERROR(__xludf.DUMMYFUNCTION(\"\"\"COMPUTED_VALUE\"\"\"),11)","v":11},{"$f":"IFERROR(__xludf.DUMMYFUNCTION(\"\"\"COMPUTED_VALUE\"\"\"),\"Zerle Lorenz\")","v":"Zerle Lorenz"},{"$f":"IFERROR(__xludf.DUMMYFUNCTION(\"\"\"COMPUTED_VALUE\"\"\"),\"w\")","v":"w"},null,null,{"$f":"IFERROR(__xludf.DUMMYFUNCTION(\"\"\"COMPUTED_VALUE\"\"\"),\"Walter Rafael\")","v":"Walter Rafael"},{"$f":"IFERROR(__xludf.DUMMYFUNCTION(\"\"\"COMPUTED_VALUE\"\"\"),\"Judoschule Roman Baur\")","v":"Judoschule Roman Baur"}]
[{"$nulls":5},{"$f":"IFERROR(__xludf.DUMMYFUNCTION(\"\"\"COMPUTED_VALUE\"\"\"),\"Polizei-SV Königsbrunn\")","v":"Polizei-SV Königsbrunn"}]
[{"$f":"IFERROR(__xludf.DUMMYFUNCTION(\"\"\"COMPUTED_VALUE\"\"\"),3)","v":3},{"$f":"IFERROR(__xludf.DUMMYFUNCTION(\"\"\"COMPUTED_VALUE\"\"\"),\"Holtmann Jonas \")","v":"Holtmann Jonas "},{"$f":"IFERROR(__xludf.DUMMYFUNCTION(\"\"\"COMPUTED_VALUE\"\"\"),\"Polizei-SV Königsbrunn\")","v":"Polizei-SV Königsbrunn"},{"$f":"IFERROR(__xludf.DUMMYFUNCTION(\"\"\"COMPUTED_VALUE\"\"\"),14)","v":14},{"$f":"IFERROR(__xludf.DUMMYFUNCTION(\"\"\"COMPUTED_VALUE\"\"\"),\"Holtmann Jonas \")","v":"Holtmann Jonas "},{"$f":"IFERROR(__xludf.DUMMYFUNCTION(\"\"\"COMPUTED_VALUE\"\"\"),\"Polizei-SV Königsbrunn\")","v":"Polizei-SV Königsbrunn"},null,{"$f":"IFERROR(__xludf.DUMMYFUNCTION(\"\"\"COMPUTED_VALUE\"\"\"),23)","v":23}]
[{"$f":"IFERROR(__xludf.DUMMYFUNCTION(\"\"\"COMPUTED_VALUE\"\"\"),4)","v":4},{"$f":"IFERROR(__xludf.DUMMYFUNCTION(\"\"\"COMPUTED_VALUE\"\"\"),\"---\")","v":"---"},{"$f":"IFERROR(__xludf.DUMMYFUNCTION(\"\"\"COMPUTED_VALUE\"\"\"),\"---\")","v":"---"},{"$f":"IFERROR(__xludf.DUMMYFUNCTION(\"\"\"COMPUTED_VALUE\"\"\"),\"w\")","v":"w"},null,{"$f":"IFERROR(__xludf.DUMMYFUNCTION(\"\"\"COMPUTED_VALUE\"\"\"),18)","v":18},{"$f":"IFERROR(__xludf.DUMMYFUNCTION(\"\"\"COMPUTED_VALUE\"\"\"),\"Walter Rafael\")","v":"Walter Rafael"},{"$f":"IFERROR(__xludf.DUMMYFUNCTION(\"\"\"COMPUTED_VALUE\"\"\"),\"b\")","v":"b"},null,{"$f":"IFERROR(__xludf.DUMMYFUNCTION(\"\"\"COMPUTED_VALUE\"\"\"),25)","v":25},{"$f":"IFERROR(__xludf.DUMMYFUNCTION(\"\"\"COMPUTED_VALUE\"\"\"),\"Bulinger Eduard\")","v":"Bulinger Eduard"}]
[null,null,null,{"$f":"IFERROR(__xludf.DUMMYFUNCTION(\"\"\"COMPUTED_VALUE\"\"\"),12)","v":12},{"$f":"IFERROR(__xludf.DUMMYFUNCTION(\"\"\"COMPUTED_VALUE\"\"\"),\"Walter Rafael\")","v":"Walter Rafael"},{"$f":"IFERROR(__xludf.DUMMYFUNCTION(\"\"\"COMPUTED_VALUE\"\"\"),\"b\")","v":"b"},null,{"$f":"IFERROR(__xludf.DUMMYFUNCTION(\"\"\"COMPUTED_VALUE\"\"\"),\"Judoschule Roman Baur\")","v":"Judoschule Roman Baur"},null,null,null,{"$f":"IFERROR(__xludf.DUMMYFUNCTION(\"\"\"COMPUTED_VALUE\"\"\"),\"3.\")","v":"3."}]
[{"$nulls":5},{"$f":"IFERROR(__xludf.DUMMYFUNCTION(\"\"\"COMPUTED_VALUE\"\"\"),\"Judoschule Roman Baur\")","v":"Judoschule Roman Baur"},null,{"$f":"IFERROR(__xludf.DUMMYFUNCTION(\"\"\"COMPUTED_VALUE\"\"\"),21)","v":21},{"$f":"IFERROR(__xludf.DUMMYFUNCTION(\"\"\"COMPUTED_VALUE\"\"\"),\"Bulinger Eduard\")","v":"Bulinger Eduard"},{"$f":"IFERROR(__xludf.DUMMYFUNCTION(\"\"\"COMPUTED_VALUE\"\"\"),\"b\")","v":"b"}]
[{"$f":"IFERROR(__xludf.DUMMYFUNCTION(\"\"\"COMPUTED_VALUE\"\"\"),5)","v":5},{"$f":"IFERROR(__xludf.DUMMYFUNCTION(\"\"\"COMPUTED_VALUE\"\"\"),\"Rausch Alexander\")","v":"Rausch Alexander"},{"$f":"IFERROR(__xludf.DUMMYFUNCTION(\"\"\"COMPUTED_VALUE\"\"\"),\"JV Urbach\")","v":"JV Urbach"},{"$f":"IFERROR(__xludf.DUMMYFUNCTION(\"\"\"COMPUTED_VALUE\"\"\"),15)","v":15},{"$f":"IFERROR(__xludf.DUMMYFUNCTION(\"\"\"COMPUTED_VALUE\"\"\"),\"Malik Kevin\")","v":"Malik Kevin"},{"$f":"IFERROR(__xludf.DUMMYFUNCTION(\"\"\"COMPUTED_VALUE\"\"\"),\"TSV Dachau\")","v":"TSV Dachau"},null,null,null,{"$f":"IFERROR(__xludf.DUMMYFUNCTION(\"\"\"COMPUTED_VALUE\"\"\"),\"Jahn Nürnberg 2012 e.V.\")","v":"Jahn Nürnberg 2012 e.V."}]
[{"$f":"IFERROR(__xludf.DUMMYFUNCTION(\"\"\"COMPUTED_VALUE\"\"\"),6)","v":6},{"$f":"IFERROR(__xludf.DUMMYFUNCTION(\"\"\"COMPUTED_VALUE\"\"\"),\"Malik Kevin\")","v":"Malik Kevin"},{"$f":"IFERROR(__xludf.DUMMYFUNCTION(\"\"\"COMPUTED_VALUE\"\"\"),\"TSV Dachau\")","v":"TSV Dachau"},{"$f":"IFERROR(__xludf.DUMMYFUNCTION(\"\"\"COMPUTED_VALUE\"\"\"),\"b\")","v":"b"},null,{"$f":"IFERROR(__xludf.DUMMYFUNCTION(\"\"\"COMPUTED_VALUE\"\"\"),19)","v":19},{"$f":"IFERROR(__xludf.DUMMYFUNCTION(\"\"\"COMPUTED_VALUE\"\"\"),\"Guilbaut Luca\")","v":"Guilbaut Luca"},{"$f":"IFERROR(__xludf.DUMMYFUNCTION(\"\"\"COMPUTED_VALUE\"\"\"),\"TSB Ravensburg\")","v":"TSB Ravensburg"}]
[null,null,null,{"$f":"IFERROR(__xludf.DUMMYFUNCTION(\"\"\"COMPUTED_VALUE\"\"\"),9)","v":9},{"$f":"IFERROR(__xludf.DUMMYFUNCTION(\"\"\"COMPUTED_VALUE\"\"\"),\"Guilbaut Luca\")","v":"Guilbaut Luca"},{"$f":"IFERROR(__xludf.DUMMYFUNCTION(\"\"\"COMPUTED_VALUE\"\"\"),\"b\")","v":"b"},null,null,{"$f":"IFERROR(__xludf.DUMMYFUNCTION(\"\"\"COMPUTED_VALUE\"\"\"),\"Zeiss Mark\")","v":"Zeiss Mark"},{"$f":"IFERROR(__xludf.DUMMYFUNCTION(\"\"\"COMPUTED_VALUE\"\"\"),\"TSV Erbach\")","v":"TSV Erbach"}]
[{"$nulls":5},{"$f":"IFERROR(__xludf.DUMMYFUNCTION(\"\"\"COMPUTED_VALUE\"\"\"),\"TSB Ravensburg\")","v":"TSB Ravensburg"}]
[{"$f":"IFERROR(__xludf.DUMMYFUNCTION(\"\"\"COMPUTED_VALUE\"\"\"),7)","v":7},{"$f":"IFERROR(__xludf.DUMMYFUNCTION(\"\"\"COMPUTED_VALUE\"\"\"),\"Shenk Vadim\")","v":"Shenk Vadim"},{"$f":"IFERROR(__xludf.DUMMYFUNCTION(\"\"\"COMPUTED_VALUE\"\"\"),\"Jahn Nürnberg 2012 e.V.\")","v":"Jahn Nürnberg 2012 e.V."},{"$f":"IFERROR(__xludf.DUMMYFUNCTION(\"\"\"COMPUTED_VALUE\"\"\"),16)","v":16},{"$f":"IFERROR(__xludf.DUMMYFUNCTION(\"\"\"COMPUTED_VALUE\"\"\"),\"Shenk Vadim\")","v":"Shenk Vadim"},{"$f":"IFERROR(__xludf.DUMMYFUNCTION(\"\"\"COMPUTED_VALUE\"\"\"),\"Jahn Nürnberg 2012 e.V.\")","v":"Jahn Nürnberg 2012 e.V."},null,{"$f":"IFERROR(__xludf.DUMMYFUNCTION(\"\"\"COMPUTED_VALUE\"\"\"),24)","v":24}]
[{"$f":"IFERROR(__xludf.DUMMYFUNCTION(\"\"\"COMPUTED_VALUE\"\"\"),8)","v":8},{"$f":"IFERROR(__xludf.DUMMYFUNCTION(\"\"\"COMPUTED_VALUE\"\"\"),\"---\")","v":"---"},{"$f":"IFERROR(__xludf.DUMMYFUNCTION(\"\"\"COMPUTED_VALUE\"\"\"),\"---\")","v":"---"},{"$f":"IFERROR(__xludf.DUMMYFUNCTION(\"\"\"COMPUTED_VALUE\"\"\"),\"w\")","v":"w"},null,{"$f":"IFERROR(__xludf.DUMMYFUNCTION(\"\"\"COMPUTED_VALUE\"\"\"),20)","v":20},{"$f":"IFERROR(__xludf.DUMMYFUNCTION(\"\"\"COMPUTED_VALUE\"\"\"),\"Zeiss Mark\")","v":"Zeiss Mark"},{"$f":"IFERROR(__xludf.DUMMYFUNCTION(\"\"\"COMPUTED_VALUE\"\"\"),\"b\")","v":"b"},null,{"$f":"IFERROR(__xludf.DUMMYFUNCTION(\"\"\"COMPUTED_VALUE\"\"\"),26)","v":26},{"$f":"IFERROR(__xludf.DUMMYFUNCTION(\"\"\"COMPUTED_VALUE\"\"\"),\"Miller Kevin\")","v":"Miller Kevin"}]
[null,null,null,{"$f":"IFERROR(__xludf.DUMMYFUNCTION(\"\"\"COMPUTED_VALUE\"\"\"),10)","v":10},{"$f":"IFERROR(__xludf.DUMMYFUNCTION(\"\"\"COMPUTED_VALUE\"\"\"),\"Zeiss Mark\")","v":"Zeiss Mark"},{"$f":"IFERROR(__xludf.DUMMYFUNCTION(\"\"\"COMPUTED_VALUE\"\"\"),\"b\")","v":"b"},null,{"$f":"IFERROR(__xludf.DUMMYFUNCTION(\"\"\"COMPUTED_VALUE\"\"\"),\"TSV Erbach\")","v":"TSV Erbach"},null,null,null,{"$f":"IFERROR(__xludf.DUMMYFUNCTION(\"\"\"COMPUTED_VALUE\"\"\"),\"3.\")","v":"3."}]
[{"$nulls":5},{"$f":"IFERROR(__xludf.DUMMYFUNCTION(\"\"\"COMPUTED_VALUE\"\"\"),\"TSV Erbach\")","v":"TSV Erbach"},null,{"$f":"IFERROR(__xludf.DUMMYFUNCTION(\"\"\"COMPUTED_VALUE\"\"\"),22)","v":22},{"$f":"IFERROR(__xludf.DUMMYFUNCTION(\"\"\"COMPUTED_VALUE\"\"\"),\"Miller Kevin\")","v":"Miller Kevin"},{"$f":"IFERROR(__xludf.DUMMYFUNCTION(\"\"\"COMPUTED_VALUE\"\"\"),\"b\")","v":"b"}]
[{"$nulls":9},{"$f":"IFERROR(__xludf.DUMMYFUNCTION(\"\"\"COMPUTED_VALUE\"\"\"),\"TuS Traunreut\")","v":"TuS Traunreut"}]